[Event "Romanian-ch Open 2022"]
[Site "Eforie Nord"]
[Date "2022.02.24"]
[Round "6.10"]
[White "Stoleriu, George"]
[Black "Antal, Hunor-Zoltan"]
[Result "1-0"]
[ECO "A06"]
[WhiteElo "2419"]
[BlackElo "2172"]
[Annotator "RC"]
[PlyCount "97"]
[EventDate "2022.02.20"]
[EventType "swiss"]
[EventCountry "ROU"]
[SourceTitle "playchess.com"]
[Source "ChessBase"]
[SourceQuality "1"]
[TimeControl "40/5400+30:900+30"]

1. Nf3 {[%emt 0:02:33]} d5 {[%emt 0:00:14]} 2. b3 {[%emt 0:00:33]} c6 {[%emt 0:00:07]} 3. Bb2 {[%emt 0:00:26]} Bg4 {[%emt 0:00:12]} 4. Ne5 {[%emt 0:04:44]} Bf5 {[%emt 0:10:46]} 5. f4 {[%emt 0:13:23]} Nd7 {[%emt 0:06:23]} 6. Nf3 {[%emt 0:04:11]} Ngf6 {[%emt 0:02:24]} 7. g3 {[%emt 0:00:24]} e6 {[%emt 0:00:24]} 8. Bg2 {[%emt 0:00:03]} Bc5 {[%emt 0:00:34]} 9. e3 {[%emt 0:01:15]} Qe7 {[%emt 0:01:41]} 10. O-O {[%emt 0:00:58]} h6 {[%emt 0:00:35]} 11. Nc3 {[%emt 0:01:35]} g5 {[%emt 0:10:07]} 12. Kh1 {[%emt 0:04:59]} O-O-O {[%emt 0:11:12]} 13. Qe2 {[%emt 0:01:35]} Rdg8 {[%emt 0:02:45]} 14. Na4 {[%emt 0:07:08]} Bd6 {[%emt 0:00:35]} 15. c4 {[%emt 0:00:11]} Rh7 {[%emt 0:16:27]} 16. d3 {[%emt 0:02:25]} gxf4 {[%emt 0:04:37]} 17. exf4 {[%emt 0:00:12]} Kb8 {[%emt 0:10:25]} 18. Rac1 {[%emt 0:08:02]} Rhg7 {[%emt 0:07:17]} 19. Ne5 {[%emt 0:02:54]} Bxe5 {[%emt 0:04:36]} 20. Bxe5+ {[%emt 0:10:48]} Ka8 {[%emt 0:00:00]} 21. Bd4 {[%emt 0:04:04]} c5 {[%emt 0:05:02]} 22. Bxf6 {[%emt 0:00:35]} Qxf6 {[%emt 0:00:02]} 23. cxd5 {[%emt 0:00:22]} Qd4 {[%emt 0:00:57]} 24. dxe6 {[%emt 0:06:13]} fxe6 {[%emt 0:00:00]} 25. Qf2 {[%emt 0:05:02]} Qxd3 {[%emt 0:03:23]} 26. Rfd1 {[%emt 0:02:27]} Qb5 {[%emt 0:00:09]} 27. Nxc5 {[%emt 0:01:03]} Nxc5 {[%emt 0:00:57]} 28. Rxc5 {[%emt 0:00:13]} Qb6 {[%emt 0:00:10]} 29. Qd4 {[%emt 0:00:50]} a6 {[%emt 0:01:08]} 30. Rc8+ {[%emt 0:05:40]} Ka7 {[%emt 0:00:01]} 31. Qxb6+ {[%emt 0:00:54]} Kxb6 {[%emt 0:00:01]} 32. Rd6+ {[%emt 0:00:06]} Ka7 {[%emt 0:01:04]} 33. Rxg8 {[%emt 0:00:05]} Rxg8 {[%emt 0:00:06]} 34. Rd7 {[%emt 0:00:02]} Rb8 {[%emt 0:00:02]} 35. Re7 {[%emt 0:03:07]} Kb6 {[%emt 0:01:12]} 36. Bf3 {[%emt 0:02:43]} Bh3 {[%emt 0:01:05]} 37. g4 {[%emt 0:02:20]} Rc8 {[%emt 0:00:17]} 38. Rxe6+ {[%emt 0:01:15]} Kb5 {[%emt 0:00:42]} 39. Kg1 {[%emt 0:00:07]} Rg8 {[%emt 0:00:40]} 40. Rxh6 {[%emt 0:00:00]} Bxg4 {[%emt 0:00:00]} 41. Kf2 {[%emt 0:04:05]} Bxf3 {[%emt 0:03:35]} 42. Kxf3 {[%emt 0:00:02]} Rg7 {[%emt 0:01:00]} 43. f5 {[%emt 0:01:21]} Kb4 {[%emt 0:00:43]} 44. f6 {[%emt 0:01:18]} Rc7 {[%emt 0:00:01]} 45. Rh4+ {[%emt 0:01:25]} Ka3 {[%emt 0:00:31]} 46. Ra4+ {[%emt 0:00:04]} Kb2 {[%emt 0:00:04]} 47. Kg4 {[%emt 0:00:04]} Rc1 {[%emt 0:00:47]} 48. f7 {[%emt 0:00:12]} Rc8 {[%emt 0:00:10]} 49. Kg5 {[%emt 0:00:06]} 1-0

[Event "Romanian-ch Open 2022"]
[Site "Eforie Nord"]
[Date "2022.02.24"]
[Round "6.11"]
[White "Filip, Andrei"]
[Black "Badea, Bela"]
[Result "1/2-1/2"]
[ECO "C41"]
[WhiteElo "2216"]
[BlackElo "2413"]
[Annotator "RC"]
[PlyCount "81"]
[EventDate "2022.02.20"]
[EventType "swiss"]
[EventCountry "ROU"]
[SourceTitle "playchess.com"]
[Source "ChessBase"]
[SourceQuality "1"]
[TimeControl "40/5400+30:900+30"]

1. e4 {[%emt 0:00:03]} d6 {[%emt 0:00:06]} 2. d4 {[%emt 0:00:04]} Nf6 {[%emt 0:00:04]} 3. Nc3 {[%emt 0:00:03]} e5 {[%emt 0:00:04]} 4. Nf3 {[%emt 0:00:03]} Nbd7 {[%emt 0:00:08]} 5. Bc4 {[%emt 0:00:06]} Be7 {[%emt 0:00:05]} 6. O-O {[%emt 0:00:03]} O-O {[%emt 0:00:05]} 7. Re1 {[%emt 0:00:05]} c6 {[%emt 0:00:07]} 8. a4 {[%emt 0:00:07]} b6 {[%emt 0:00:05]} 9. Ba2 {[%emt 0:00:11]} a6 {[%emt 0:00:33]} 10. h3 {[%emt 0:00:11]} Rb8 {[%emt 0:02:20]} 11. Be3 {[%emt 0:00:13]} b5 {[%emt 0:14:01]} 12. axb5 {[%emt 0:00:06]} axb5 {[%emt 0:06:28]} 13. b4 {[%emt 0:00:29]} Qc7 {[%emt 0:00:23]} 14. Qd2 {[%emt 0:00:41]} Rb7 {[%emt 0:13:05]} 15. Bb3 {[%emt 0:02:05]} exd4 {[%emt 0:12:31]} 16. Nxd4 {[%emt 0:02:19]} Nb6 {[%emt 0:04:44]} 17. Bf4 {[%emt 0:06:16]} Bd7 {[%emt 0:04:59]} 18. Red1 {[%emt 0:06:31]} Qc8 {[%emt 0:01:20]} 19. Nf3 {[%emt 0:21:43]} d5 {[%emt 0:06:25]} 20. e5 {[%emt 0:03:45]} Ne8 {[%emt 0:00:07]} 21. Ne2 {[%emt 0:00:52]} f6 {[%emt 0:00:17]} 22. Ned4 {[%emt 0:14:47]} fxe5 {[%emt 0:01:03]} 23. Nxe5 {[%emt 0:02:15]} Nd6 {[%emt 0:05:07]} 24. Re1 {[%emt 0:10:28]} Nf5 {[%emt 0:07:11]} 25. Ra6 {[%emt 0:12:01]} Kh8 {[%emt 0:10:24]} 26. Nxf5 {[%emt 0:03:33]} Bxf5 {[%emt 0:00:48]} 27. Be3 {[%emt 0:02:13]} Nc4 {[%emt 0:03:41]} 28. Bxc4 {[%emt 0:03:02]} dxc4 {[%emt 0:00:23]} 29. Rxc6 {[%emt 0:01:52]} Rc7 {[%emt 0:00:45]} 30. Rxc7 {[%emt 0:01:49]} Qxc7 {[%emt 0:00:01]} 31. Bf4 {[%emt 0:00:25]} Qb7 {[%emt 0:02:34]} 32. c3 {[%emt 0:01:12]} Kg8 {[%emt 0:00:05]} 33. Rd1 {[%emt 0:03:36]} Bd3 {[%emt 0:01:18]} 34. Nxd3 {[%emt 0:00:55]} cxd3 {[%emt 0:00:00]} 35. Be3 {[%emt 0:01:56]} Rd8 {[%emt 0:00:01]} 36. Bd4 {[%emt 0:01:31]} Bxb4 {[%emt 0:00:08]} 37. Qg5 {[%emt 0:00:51]} Rd5 {[%emt 0:01:20]} 38. Qg4 {[%emt 0:00:31]} Qd7 {[%emt 0:02:05]} 39. Qxd7 {[%emt 0:00:33]} Rxd7 {[%emt 0:00:01]} 40. Rxd3 {[%emt 0:00:00]} Bxc3 {[%emt 0:00:00]} 41. Rxc3 {[%emt 0:00:24]} 1/2-1/2

[Event "Romanian-ch Open 2022"]
[Site "Eforie Nord"]
[Date "2022.02.24"]
[Round "6.12"]
[White "Cosma, Ioan"]
[Black "Magold, Filip"]
[Result "1-0"]
[ECO "E15"]
[WhiteElo "2396"]
[BlackElo "2204"]
[Annotator "RC"]
[PlyCount "85"]
[EventDate "2022.02.20"]
[EventType "swiss"]
[EventCountry "ROU"]
[SourceTitle "playchess.com"]
[Source "ChessBase"]
[SourceQuality "1"]
[TimeControl "40/5400+30:900+30"]

1. d4 {[%emt 0:00:09]} Nf6 {[%emt 0:00:07]} 2. c4 {[%emt 0:00:20]} e6 {[%emt 0:00:05]} 3. Nf3 {[%emt 0:00:17]} b6 {[%emt 0:00:10]} 4. g3 {[%emt 0:00:18]} Bb4+ {[%emt 0:00:13]} 5. Bd2 {[%emt 0:00:23]} Be7 {[%emt 0:00:07]} 6. Bg2 {[%emt 0:04:10]} c6 {[%emt 0:00:07]} 7. Ne5 {[%emt 0:04:37]} d5 {[%emt 0:03:45]} 8. cxd5 {[%emt 0:04:28]} cxd5 {[%emt 0:00:46]} 9. Qa4+ {[%emt 0:00:59]} Nfd7 {[%emt 0:07:53]} 10. e4 {[%emt 0:07:55]} O-O {[%emt 0:02:45]} 11. exd5 {[%emt 0:01:25]} Nxe5 {[%emt 0:04:52]} 12. dxe5 {[%emt 0:00:23]} exd5 {[%emt 0:03:52]} 13. O-O {[%emt 0:02:13]} Bb7 {[%emt 0:14:02]} 14. Nc3 {[%emt 0:05:41]} Na6 {[%emt 0:06:24]} 15. Be3 {[%emt 0:07:40]} Bc5 {[%emt 0:08:26]} 16. Bf4 {[%emt 0:05:52]} g5 {[%emt 0:06:15]} 17. Be3 {[%emt 0:07:18]} Bxe3 {[%emt 0:03:46]} 18. fxe3 {[%emt 0:00:07]} Nc5 {[%emt 0:00:31]} 19. Qg4 {[%emt 0:00:47]} Ne6 {[%emt 0:02:51]} 20. Rad1 {[%emt 0:01:35]} Qc7 {[%emt 0:12:37]} 21. Nxd5 {[%emt 0:14:20]} Bxd5 {[%emt 0:02:03]} 22. Bxd5 {[%emt 0:00:06]} Rae8 {[%emt 0:00:14]} 23. Bxe6 {[%emt 0:00:41]} Rxe6 {[%emt 0:00:09]} 24. Qxg5+ {[%emt 0:00:08]} Kh8 {[%emt 0:00:04]} 25. Rd5 {[%emt 0:01:19]} Rfe8 {[%emt 0:11:19]} 26. Qf4 {[%emt 0:01:53]} Kg8 {[%emt 0:01:01]} 27. Qg4+ {[%emt 0:01:10]} Kh8 {[%emt 0:01:08]} 28. Qd4 {[%emt 0:00:23]} Kg8 {[%emt 0:03:53]} 29. Rd7 {[%emt 0:04:14]} Qxe5 {[%emt 0:00:18]} 30. Qxe5 {[%emt 0:00:35]} Rxe5 {[%emt 0:00:01]} 31. Rfxf7 {[%emt 0:00:09]} Rxe3 {[%emt 0:00:12]} 32. Rg7+ {[%emt 0:00:00]} Kh8 {[%emt 0:00:01]} 33. Rxh7+ {[%emt 0:00:05]} Kg8 {[%emt 0:00:02]} 34. Rdg7+ {[%emt 0:00:36]} Kf8 {[%emt 0:00:07]} 35. Rxa7 {[%emt 0:00:09]} Re1+ {[%emt 0:00:26]} 36. Kg2 {[%emt 0:00:07]} R1e2+ {[%emt 0:00:12]} 37. Kh3 {[%emt 0:00:11]} Kg8 {[%emt 0:00:02]} 38. Rag7+ {[%emt 0:06:20]} Kf8 {[%emt 0:00:01]} 39. Rg4 {[%emt 0:00:00]} R8e6 {[%emt 0:00:00]} 40. Ra4 {[%emt 0:00:00]} Kg8 {[%emt 0:00:00]} 41. Rb7 {[%emt 0:04:31]} Rh6+ {[%emt 0:04:41]} 42. Kg4 {[%emt 0:00:06]} Re8 {[%emt 0:00:15]} 43. h4 {[%emt 0:00:26]} 1-0

[Event "Romanian-ch Open 2022"]
[Site "Eforie Nord"]
[Date "2022.02.24"]
[Round "6.13"]
[White "Martian, Dragos-Daniel"]
[Black "Doncea, Vladimir"]
[Result "1-0"]
[ECO "B22"]
[WhiteElo "2270"]
[BlackElo "2367"]
[Annotator "RC"]
[PlyCount "71"]
[EventDate "2022.02.20"]
[EventType "swiss"]
[EventCountry "ROU"]
[SourceTitle "playchess.com"]
[Source "ChessBase"]
[SourceQuality "1"]
[TimeControl "40/5400+30:900+30"]

1. e4 {[%emt 0:09:28]} c5 {[%emt 0:00:17]} 2. c3 {[%emt 0:00:10]} d5 {[%emt 0:00:15]} 3. exd5 {[%emt 0:00:01]} Qxd5 {[%emt 0:00:10]} 4. d4 {[%emt 0:00:01]} Nc6 {[%emt 0:00:22]} 5. Nf3 {[%emt 0:00:02]} Bf5 {[%emt 0:00:14]} 6. Be3 {[%emt 0:00:05]} Nf6 {[%emt 0:00:31]} 7. Na3 {[%emt 0:00:05]} cxd4 {[%emt 0:01:03]} 8. Bc4 {[%emt 0:00:23]} Qa5 {[%emt 0:04:07]} 9. Nxd4 {[%emt 0:01:02]} Nxd4 {[%emt 0:01:12]} 10. Bxd4 {[%emt 0:00:43]} e5 {[%emt 0:04:30]} 11. Bb5+ {[%emt 0:01:23]} Bd7 {[%emt 0:07:37]} 12. Bxd7+ {[%emt 0:00:16]} Nxd7 {[%emt 0:00:09]} 13. Nc4 {[%emt 0:00:16]} Qc7 {[%emt 0:16:52]} 14. Qe2 {[%emt 0:29:32]} O-O-O {[%emt 0:06:34]} 15. Be3 {[%emt 0:01:45]} Bc5 {[%emt 0:01:47]} 16. O-O {[%emt 0:00:51]} Nf6 {[%emt 0:06:49]} 17. Bg5 {[%emt 0:02:44]} Rhe8 {[%emt 0:05:39]} 18. b4 {[%emt 0:02:39]} Be7 {[%emt 0:05:31]} 19. Bxf6 {[%emt 0:05:42]} Bxf6 {[%emt 0:00:55]} 20. a4 {[%emt 0:04:49]} e4 {[%emt 0:01:22]} 21. b5 {[%emt 0:09:55]} Rd3 {[%emt 0:02:47]} 22. Ne3 {[%emt 0:00:38]} Be5 {[%emt 0:03:13]} 23. g3 {[%emt 0:03:27]} g6 {[%emt 0:03:55]} 24. a5 {[%emt 0:00:36]} Qd7 {[%emt 0:09:07]} 25. a6 {[%emt 0:08:35]} b6 {[%emt 0:01:15]} 26. Nc4 {[%emt 0:05:04]} Bc7 {[%emt 0:02:30]} 27. Rad1 {[%emt 0:00:55]} f5 {[%emt 0:03:11]} 28. Nb2 {[%emt 0:05:22]} Rd6 {[%emt 0:01:15]} 29. Nc4 {[%emt 0:01:00]} Rd3 {[%emt 0:00:14]} 30. Nb2 {[%emt 0:00:05]} Rd5 {[%emt 0:06:02]} 31. Rxd5 {[%emt 0:01:05]} Qxd5 {[%emt 0:00:08]} 32. Rd1 {[%emt 0:00:05]} Qb3 {[%emt 0:00:40]} 33. Nc4 {[%emt 0:02:17]} Re6 {[%emt 0:03:52]} 34. h4 {[%emt 0:02:11]} Qxc3 {[%emt 0:00:17]} 35. Qa2 {[%emt 0:01:17]} Qf3 {[%emt 0:00:55]} 36. Nxb6+ {[%emt 0:04:01]} 1-0

[Event "Romanian-ch Open 2022"]
[Site "Eforie Nord"]
[Date "2022.02.24"]
[Round "6.14"]
[White "Bonte, Andrei-Mihai"]
[Black "Coca, Cristi-Iulian"]
[Result "1/2-1/2"]
[ECO "E94"]
[WhiteElo "2349"]
[BlackElo "2147"]
[Annotator "RC"]
[PlyCount "118"]
[EventDate "2022.02.20"]
[EventType "swiss"]
[EventCountry "ROU"]
[SourceTitle "playchess.com"]
[Source "ChessBase"]
[SourceQuality "1"]
[TimeControl "40/5400+30:900+30"]

1. d4 {[%emt 0:03:20]} Nf6 {[%emt 0:00:06]} 2. c4 {[%emt 0:00:05]} g6 {[%emt 0:00:03]} 3. Nc3 {[%emt 0:00:06]} Bg7 {[%emt 0:00:03]} 4. e4 {[%emt 0:00:05]} d6 {[%emt 0:00:01]} 5. Nf3 {[%emt 0:00:07]} O-O {[%emt 0:00:04]} 6. Be2 {[%emt 0:00:05]} e5 {[%emt 0:00:04]} 7. O-O {[%emt 0:00:43]} Na6 {[%emt 0:00:01]} 8. Re1 {[%emt 0:05:51]} Bg4 {[%emt 0:00:28]} 9. d5 {[%emt 0:09:19]} Nc5 {[%emt 0:00:13]} 10. Bf1 {[%emt 0:07:04]} a5 {[%emt 0:01:14]} 11. h3 {[%emt 0:00:06]} Bd7 {[%emt 0:02:01]} 12. Rb1 {[%emt 0:11:29]} h5 {[%emt 0:07:22]} 13. b3 {[%emt 0:12:25]} Nh7 {[%emt 0:01:57]} 14. Be3 {[%emt 0:03:19]} b6 {[%emt 0:00:32]} 15. Nd2 {[%emt 0:13:15]} Be8 {[%emt 0:18:32]} 16. Rc1 {[%emt 0:02:10]} f5 {[%emt 0:03:02]} 17. exf5 {[%emt 0:00:27]} gxf5 {[%emt 0:00:08]} 18. f4 {[%emt 0:00:21]} e4 {[%emt 0:01:17]} 19. Nb5 {[%emt 0:09:51]} Bxb5 {[%emt 0:11:48]} 20. cxb5 {[%emt 0:00:08]} Qh4 {[%emt 0:00:57]} 21. Kh2 {[%emt 0:04:02]} Rf7 {[%emt 0:15:01]} 22. g3 {[%emt 0:05:01]} Qf6 {[%emt 0:00:45]} 23. Qxh5 {[%emt 0:00:06]} Qb2 {[%emt 0:04:42]} 24. a4 {[%emt 0:03:48]} Bd4 {[%emt 0:23:41]} 25. Rb1 {[%emt 0:02:10]} Qc3 {[%emt 0:01:19]} 26. Rbc1 {[%emt 0:01:59]} Qb2 {[%emt 0:00:24]} 27. Qd1 {[%emt 0:02:31]} Bxe3 {[%emt 0:01:57]} 28. Rxe3 {[%emt 0:00:04]} Nf6 {[%emt 0:01:25]} 29. Bc4 {[%emt 0:00:47]} Rh7 {[%emt 0:04:08]} 30. Kg2 {[%emt 0:02:43]} Rxh3 {[%emt 0:00:14]} 31. Rec3 {[%emt 0:01:39]} Ng4 {[%emt 0:01:10]} 32. R1c2 {[%emt 0:00:09]} Rh2+ {[%emt 0:00:06]} 33. Kg1 {[%emt 0:00:31]} Qa3 {[%emt 0:00:15]} 34. Nf1 {[%emt 0:00:24]} Rxc2 {[%emt 0:00:09]} 35. Qxc2 {[%emt 0:00:29]} Kf7 {[%emt 0:01:04]} 36. Be2 {[%emt 0:00:58]} Qb4 {[%emt 0:01:40]} 37. Bxg4 {[%emt 0:00:16]} Qd4+ {[%emt 0:00:30]} 38. Kg2 {[%emt 0:00:39]} fxg4 {[%emt 0:00:05]} 39. Ne3 {[%emt 0:00:46]} Rg8 {[%emt 0:00:33]} 40. Qc1 {[%emt 0:00:00]} Qh8 {[%emt 0:00:00]} 41. Qc2 {[%emt 0:02:53]} Qh3+ {[%emt 0:01:22]} 42. Kf2 {[%emt 0:00:01]} Qh2+ {[%emt 0:00:18]} 43. Ng2 {[%emt 0:00:06]} Re8 {[%emt 0:08:24]} 44. Re3 {[%emt 0:03:46]} Qh1 {[%emt 0:02:34]} 45. Qe2 {[%emt 0:02:16]} Nd3+ {[%emt 0:01:43]} 46. Rxd3 {[%emt 0:00:08]} exd3 {[%emt 0:00:03]} 47. Qxd3 {[%emt 0:00:02]} Ke7 {[%emt 0:03:36]} 48. Qe2+ {[%emt 0:03:44]} Kd8 {[%emt 0:00:01]} 49. Qxg4 {[%emt 0:00:09]} Qc1 {[%emt 0:01:01]} 50. Qf3 {[%emt 0:01:38]} Rh8 {[%emt 0:01:13]} 51. g4 {[%emt 0:02:34]} Rh1 {[%emt 0:00:32]} 52. Kg3 {[%emt 0:00:50]} Qd2 {[%emt 0:00:58]} 53. g5 {[%emt 0:01:20]} Rc1 {[%emt 0:00:30]} 54. Kh2 {[%emt 0:00:47]} Rc3 {[%emt 0:00:08]} 55. Qh5 {[%emt 0:00:14]} Rc2 {[%emt 0:00:31]} 56. Qh8+ {[%emt 0:00:14]} Kd7 {[%emt 0:00:05]} 57. Qh3+ {[%emt 0:00:14]} Kd8 {[%emt 0:00:00]} 58. Qh8+ {[%emt 0:00:00]} Kd7 {[%emt 0:00:16]} 59. Qh3+ {[%emt 0:00:00]} Kd8 {[%emt 0:00:17]} 1/2-1/2

[Event "Romanian-ch Open 2022"]
[Site "Eforie Nord"]
[Date "2022.02.24"]
[Round "6.15"]
[White "Stepanencu, Nicodim-Cosmin"]
[Black "Creanga, Robert-Ionut"]
[Result "0-1"]
[ECO "B12"]
[WhiteElo "2334"]
[BlackElo "2115"]
[Annotator "RC"]
[PlyCount "122"]
[EventDate "2022.02.20"]
[EventType "swiss"]
[EventCountry "ROU"]
[SourceTitle "playchess.com"]
[Source "ChessBase"]
[SourceQuality "1"]
[TimeControl "40/5400+30:900+30"]

1. e4 {[%emt 0:00:03]} c6 {[%emt 0:00:37]} 2. d4 {[%emt 0:00:06]} d5 {[%emt 0:00:21]} 3. e5 {[%emt 0:00:05]} Bf5 {[%emt 0:00:17]} 4. Nf3 {[%emt 0:00:05]} e6 {[%emt 0:00:25]} 5. Be2 {[%emt 0:00:07]} c5 {[%emt 0:00:19]} 6. O-O {[%emt 0:00:41]} Nc6 {[%emt 0:01:38]} 7. c3 {[%emt 0:00:06]} cxd4 {[%emt 0:00:54]} 8. Nxd4 {[%emt 0:00:20]} Nge7 {[%emt 0:01:20]} 9. Nxf5 {[%emt 0:08:33]} Nxf5 {[%emt 0:00:34]} 10. Nd2 {[%emt 0:07:39]} Nxe5 {[%emt 0:11:09]} 11. Qa4+ {[%emt 0:06:57]} Nc6 {[%emt 0:05:41]} 12. Bd3 {[%emt 0:09:17]} Nd6 {[%emt 0:12:42]} 13. Nf3 {[%emt 0:03:39]} Be7 {[%emt 0:13:48]} 14. Qg4 {[%emt 0:05:16]} O-O {[%emt 0:10:42]} 15. Bh6 {[%emt 0:05:29]} Bf6 {[%emt 0:01:37]} 16. Ng5 {[%emt 0:04:46]} Bxg5 {[%emt 0:01:38]} 17. Bxg5 {[%emt 0:00:03]} Qd7 {[%emt 0:02:57]} 18. Rfe1 {[%emt 0:01:04]} f5 {[%emt 0:01:19]} 19. Qa4 {[%emt 0:08:46]} e5 {[%emt 0:03:42]} 20. Rad1 {[%emt 0:03:27]} Qf7 {[%emt 0:10:29]} 21. Bc2 {[%emt 0:06:30]} Ne4 {[%emt 0:04:26]} 22. Bc1 {[%emt 0:01:46]} Kh8 {[%emt 0:01:55]} 23. f3 {[%emt 0:02:12]} Nd6 {[%emt 0:00:37]} 24. Bb3 {[%emt 0:00:14]} Nc4 {[%emt 0:00:24]} 25. Qb5 {[%emt 0:02:16]} Rad8 {[%emt 0:00:40]} 26. Bg5 {[%emt 0:07:13]} Rd7 {[%emt 0:03:12]} 27. h3 {[%emt 0:04:53]} h6 {[%emt 0:03:55]} 28. Bh4 {[%emt 0:00:02]} N6a5 {[%emt 0:00:35]} 29. Ba4 {[%emt 0:00:29]} Nc6 {[%emt 0:00:45]} 30. Re2 {[%emt 0:01:25]} Rc8 {[%emt 0:02:23]} 31. Kh1 {[%emt 0:06:31]} a6 {[%emt 0:00:39]} 32. Qc5 {[%emt 0:00:02]} b5 {[%emt 0:00:34]} 33. Bb3 {[%emt 0:03:09]} Ne7 {[%emt 0:00:33]} 34. Qg1 {[%emt 0:00:30]} Ng6 {[%emt 0:00:46]} 35. Bg3 {[%emt 0:00:02]} Re7 {[%emt 0:01:28]} 36. Rde1 {[%emt 0:02:37]} Qf6 {[%emt 0:00:43]} 37. Rd1 {[%emt 0:01:38]} Qf7 {[%emt 0:00:12]} 38. Qh2 {[%emt 0:00:58]} Rce8 {[%emt 0:00:58]} 39. h4 {[%emt 0:00:30]} h5 {[%emt 0:00:41]} 40. Qh3 {[%emt 0:00:00]} Rf8 {[%emt 0:00:00]} 41. a4 {[%emt 0:04:23]} bxa4 {[%emt 0:05:04]} 42. Bxa4 {[%emt 0:03:56]} Rb8 {[%emt 0:01:01]} 43. Bc6 {[%emt 0:00:25]} Nb6 {[%emt 0:00:59]} 44. Red2 {[%emt 0:01:26]} Re6 {[%emt 0:01:50]} 45. Bxd5 {[%emt 0:00:47]} Nxd5 {[%emt 0:00:12]} 46. Rxd5 {[%emt 0:00:03]} Rxb2 {[%emt 0:00:22]} 47. c4 {[%emt 0:00:41]} Rc2 {[%emt 0:03:06]} 48. Rc5 {[%emt 0:04:12]} Kh7 {[%emt 0:01:08]} 49. Kh2 {[%emt 0:03:19]} Re2 {[%emt 0:00:58]} 50. Rcd5 {[%emt 0:00:36]} Rc6 {[%emt 0:00:55]} 51. c5 {[%emt 0:00:28]} Rc7 {[%emt 0:02:41]} 52. Kg1 {[%emt 0:01:03]} Rc2 {[%emt 0:03:16]} 53. Bxe5 {[%emt 0:00:38]} R2xc5 {[%emt 0:00:27]} 54. Rxc5 {[%emt 0:00:35]} Rxc5 {[%emt 0:00:10]} 55. Bd4 {[%emt 0:00:29]} Nf4 {[%emt 0:01:18]} 56. Qh1 {[%emt 0:00:30]} Ne2+ {[%emt 0:00:56]} 57. Kf2 {[%emt 0:00:06]} Rc2 {[%emt 0:00:27]} 58. Be3 {[%emt 0:01:27]} f4 {[%emt 0:00:24]} 59. Bd2 {[%emt 0:00:00]} Nc3 {[%emt 0:00:27]} 60. Qe1 {[%emt 0:00:00]} Nxd1+ {[%emt 0:00:14]} 61. Qxd1 {[%emt 0:00:00]} Qa2 {[%emt 0:00:27]} 0-1

[Event "Romanian-ch Open 2022"]
[Site "Eforie Nord"]
[Date "2022.02.24"]
[Round "6.16"]
[White "Vajda, Albert"]
[Black "Serban, Cristian-Stefan"]
[Result "1-0"]
[ECO "B20"]
[WhiteElo "2351"]
[BlackElo "2090"]
[Annotator "RC"]
[PlyCount "147"]
[EventDate "2022.02.20"]
[EventType "swiss"]
[EventCountry "ROU"]
[SourceTitle "playchess.com"]
[Source "ChessBase"]
[SourceQuality "1"]
[TimeControl "40/5400+30:900+30"]

1. e4 {[%emt 0:00:03]} c5 {[%emt 0:00:05]} 2. a3 {[%emt 0:00:42]} e6 {[%emt 0:03:05]} 3. b4 {[%emt 0:01:19]} cxb4 {[%emt 0:00:22]} 4. axb4 {[%emt 0:00:09]} Bxb4 {[%emt 0:00:05]} 5. c3 {[%emt 0:00:20]} Be7 {[%emt 0:03:09]} 6. d4 {[%emt 0:02:06]} Nf6 {[%emt 0:01:38]} 7. Bd3 {[%emt 0:07:18]} Nc6 {[%emt 0:03:53]} 8. h4 {[%emt 0:06:38]} h5 {[%emt 0:17:16]} 9. Nd2 {[%emt 0:07:59]} Rb8 {[%emt 0:01:48]} 10. Qe2 {[%emt 0:13:08]} a6 {[%emt 0:07:03]} 11. Ngf3 {[%emt 0:01:12]} b5 {[%emt 0:01:03]} 12. O-O {[%emt 0:02:08]} d5 {[%emt 0:10:16]} 13. e5 {[%emt 0:14:43]} Nd7 {[%emt 0:00:36]} 14. Ng5 {[%emt 0:03:34]} Nf8 {[%emt 0:07:22]} 15. Nb3 {[%emt 0:03:41]} b4 {[%emt 0:09:44]} 16. Bxa6 {[%emt 0:06:07]} bxc3 {[%emt 0:00:24]} 17. Bb5 {[%emt 0:00:33]} Bd7 {[%emt 0:00:30]} 18. Bxc6 {[%emt 0:06:26]} Bxc6 {[%emt 0:00:09]} 19. Qc2 {[%emt 0:01:11]} Bb5 {[%emt 0:08:41]} 20. Re1 {[%emt 0:03:38]} Qc7 {[%emt 0:00:36]} 21. Re3 {[%emt 0:03:39]} Rc8 {[%emt 0:00:16]} 22. Ba3 {[%emt 0:02:26]} Qc4 {[%emt 0:14:37]} 23. Bxe7 {[%emt 0:03:53]} Kxe7 {[%emt 0:00:03]} 24. Qa2 {[%emt 0:05:31]} Qb4 {[%emt 0:03:36]} 25. Rf3 {[%emt 0:00:55]} f6 {[%emt 0:00:05]} 26. exf6+ {[%emt 0:00:35]} gxf6 {[%emt 0:00:03]} 27. Nh3 {[%emt 0:00:33]} Nd7 {[%emt 0:00:57]} 28. Nf4 {[%emt 0:00:17]} Ra8 {[%emt 0:00:33]} 29. Na5 {[%emt 0:00:28]} Kd6 {[%emt 0:02:15]} 30. Re3 {[%emt 0:00:58]} Ne5 {[%emt 0:04:17]} 31. dxe5+ {[%emt 0:00:39]} fxe5 {[%emt 0:00:06]} 32. Ng6 {[%emt 0:01:13]} Rhc8 {[%emt 0:00:07]} 33. Ree1 {[%emt 0:01:12]} c2 {[%emt 0:00:13]} 34. Rec1 {[%emt 0:00:17]} Bd3 {[%emt 0:00:07]} 35. Nxe5 {[%emt 0:00:28]} Rxa5 {[%emt 0:01:18]} 36. Nf7+ {[%emt 0:00:14]} Ke7 {[%emt 0:00:11]} 37. Qxa5 {[%emt 0:00:24]} Qxa5 {[%emt 0:00:02]} 38. Rxa5 {[%emt 0:00:02]} Kxf7 {[%emt 0:00:02]} 39. f3 {[%emt 0:00:36]} Bf5 {[%emt 0:01:05]} 40. Kf2 {[%emt 0:00:00]} d4 {[%emt 0:00:00]} 41. Ke1 {[%emt 0:03:57]} Kf6 {[%emt 0:02:24]} 42. Kd2 {[%emt 0:00:55]} Rg8 {[%emt 0:02:37]} 43. Rg1 {[%emt 0:00:10]} Rg3 {[%emt 0:02:31]} 44. Rc5 {[%emt 0:02:20]} d3 {[%emt 0:00:46]} 45. Ke3 {[%emt 0:02:30]} Ke7 {[%emt 0:02:16]} 46. Rc4 {[%emt 0:01:03]} Kd6 {[%emt 0:01:35]} 47. Kd2 {[%emt 0:00:02]} Kd5 {[%emt 0:00:32]} 48. Rc8 {[%emt 0:00:02]} e5 {[%emt 0:03:28]} 49. Rd8+ {[%emt 0:00:54]} Ke6 {[%emt 0:00:12]} 50. Re8+ {[%emt 0:00:12]} Kd6 {[%emt 0:00:08]} 51. Rd8+ {[%emt 0:00:53]} Ke7 {[%emt 0:00:22]} 52. Rh8 {[%emt 0:00:59]} Bg6 {[%emt 0:00:05]} 53. Rc8 {[%emt 0:01:49]} Bf5 {[%emt 0:01:49]} 54. Rh8 {[%emt 0:00:14]} Bg6 {[%emt 0:00:03]} 55. Rc8 {[%emt 0:00:05]} Kf6 {[%emt 0:00:33]} 56. Rc6+ {[%emt 0:00:53]} Ke7 {[%emt 0:00:54]} 57. Rc7+ {[%emt 0:00:06]} Kd6 {[%emt 0:00:17]} 58. Rg7 {[%emt 0:00:34]} Ke6 {[%emt 0:00:06]} 59. Rg8 {[%emt 0:00:25]} Kf7 {[%emt 0:00:18]} 60. Rd8 {[%emt 0:01:05]} e4 {[%emt 0:00:21]} 61. fxe4 {[%emt 0:00:44]} Bxe4 {[%emt 0:00:07]} 62. Rd4 {[%emt 0:01:00]} Bg6 {[%emt 0:00:37]} 63. Rf1+ {[%emt 0:00:29]} Ke6 {[%emt 0:00:38]} 64. Rf2 {[%emt 0:00:49]} Ke5 {[%emt 0:01:40]} 65. Rd8 {[%emt 0:00:36]} Rg4 {[%emt 0:01:03]} 66. Rg8 {[%emt 0:00:44]} Ke4 {[%emt 0:02:19]} 67. Ra8 {[%emt 0:00:50]} c1=Q+ {[%emt 0:01:07]} 68. Kxc1 {[%emt 0:00:19]} Ke3 {[%emt 0:00:02]} 69. Rf3+ {[%emt 0:01:51]} Ke2 {[%emt 0:01:10]} 70. Ra2+ {[%emt 0:00:04]} Ke1 {[%emt 0:00:17]} 71. Re3+ {[%emt 0:00:09]} Kf1 {[%emt 0:00:05]} 72. g3 {[%emt 0:01:13]} Rc4+ {[%emt 0:01:21]} 73. Kd1 {[%emt 0:00:35]} Be4 {[%emt 0:01:02]} 74. Re1# {[%emt 0:00:20]} 1-0